[Event "Titled Tuesday Blitz May 23 Late 2023"]
[White "cryptoguru02"]
[Black "Chakravarthi Reddy, M"]
[BlackFideId "25009532"]
[WhiteElo "2564"]
[BlackElo "2201"]
[Result "1/2-1/2"]
[Round "08"]
[TimeControl "180+2"]
[Date "2023.05.23"]
[WhiteClock "0:00:22"]
[BlackClock "0:00:08"]

1. Nf3 {[%clk 0:03:00]}  d5 {[%clk 0:02:58]} 2. g3 {[%clk 0:03:01]}  g6 {[%clk 0:02:54]} 3. c4 {[%clk 0:03:00]}  dxc4 {[%clk 0:02:49]} 4. Qa4+ {[%clk 0:02:56]}  Bd7 {[%clk 0:02:50]} 5. Qxc4 {[%clk 0:02:56]}  Bc6 {[%clk 0:02:50]} 6. Bg2 {[%clk 0:02:56]}  Qd5 {[%clk 0:02:46]} 7. Qxd5 {[%clk 0:02:51]}  Bxd5 {[%clk 0:02:46]} 8. Nc3 {[%clk 0:02:52]}  Bc6 {[%clk 0:02:41]} 9. d4 {[%clk 0:02:52]}  Nf6 {[%clk 0:02:39]} 10. Bg5 {[%clk 0:02:43]}  Ne4 {[%clk 0:02:39]} 11. d5 {[%clk 0:02:29]}  Nxg5 {[%clk 0:02:35]} 12. dxc6 {[%clk 0:02:26]}  Nxf3+ {[%clk 0:02:32]} 13. Bxf3 {[%clk 0:02:26]}  Nxc6 {[%clk 0:02:31]} 14. Bxc6+ {[%clk 0:02:21]}  bxc6 {[%clk 0:02:31]} 15. O-O-O {[%clk 0:02:13]}  f5 {[%clk 0:02:09]} 16. Rd3 {[%clk 0:02:02]}  e5 {[%clk 0:02:08]} 17. Rhd1 {[%clk 0:01:59]}  Bd6 {[%clk 0:02:07]} 18. Na4 {[%clk 0:01:49]}  Ke7 {[%clk 0:01:59]} 19. Rc3 {[%clk 0:01:47]}  c5 {[%clk 0:01:50]} 20. Nxc5 {[%clk 0:01:46]}  Rab8 {[%clk 0:01:42]} 21. b3 {[%clk 0:01:43]}  Rb5 {[%clk 0:01:25]} 22. Na4 {[%clk 0:01:41]}  h5 {[%clk 0:01:21]} 23. h4 {[%clk 0:01:40]}  f4 {[%clk 0:01:14]} 24. Rc4 {[%clk 0:01:33]}  Rf8 {[%clk 0:01:00]} 25. Nc3 {[%clk 0:01:31]}  Ra5 {[%clk 0:00:53]} 26. a4 {[%clk 0:01:18]}  fxg3 {[%clk 0:00:54]} 27. fxg3 {[%clk 0:01:18]}  Rc5 {[%clk 0:00:48]} 28. Rxc5 {[%clk 0:01:05]}  Bxc5 {[%clk 0:00:48]} 29. Ne4 {[%clk 0:01:05]}  Be3+ {[%clk 0:00:25]} 30. Kc2 {[%clk 0:01:05]}  Rd8 {[%clk 0:00:25]} 31. Rxd8 {[%clk 0:01:03]}  Kxd8 {[%clk 0:00:25]} 32. Kd3 {[%clk 0:01:04]}  Bb6 {[%clk 0:00:21]} 33. b4 {[%clk 0:01:02]}  a5 {[%clk 0:00:20]} 34. bxa5 {[%clk 0:01:01]}  Bxa5 {[%clk 0:00:20]} 35. Nc5 {[%clk 0:01:01]}  Ke7 {[%clk 0:00:20]} 36. Nb3 {[%clk 0:01:00]}  Be1 {[%clk 0:00:20]} 37. a5 {[%clk 0:00:58]}  Kd7 {[%clk 0:00:18]} 38. a6 {[%clk 0:00:45]}  Kc6 {[%clk 0:00:18]} 39. Nc5 {[%clk 0:00:45]}  Kb6 {[%clk 0:00:17]} 40. Nd7+ {[%clk 0:00:43]}  Kxa6 {[%clk 0:00:18]} 41. Nxe5 {[%clk 0:00:44]}  Bxg3 {[%clk 0:00:17]} 42. Nxg6 {[%clk 0:00:45]}  Kb5 {[%clk 0:00:16]} 43. e4 {[%clk 0:00:43]}  c5 {[%clk 0:00:17]} 44. e5 {[%clk 0:00:42]}  c4+ {[%clk 0:00:17]} 45. Kc3 {[%clk 0:00:43]}  Be1+ {[%clk 0:00:16]} 46. Kc2 {[%clk 0:00:41]}  Kc6 {[%clk 0:00:13]} 47. e6 {[%clk 0:00:40]}  Kd6 {[%clk 0:00:12]} 48. e7 {[%clk 0:00:39]}  Kd7 {[%clk 0:00:13]} 49. Nf4 {[%clk 0:00:30]}  Bxh4 {[%clk 0:00:11]} 50. Nxh5 {[%clk 0:00:28]}  Be1 {[%clk 0:00:08]} 51. Nf4 {[%clk 0:00:21]}  Kxe7 {[%clk 0:00:08]} 52. Nd3 {[%clk 0:00:21]}  cxd3+ {[%clk 0:00:08]} 53. Kxd3 {[%clk 0:00:22]} 1/2-1/2


[Site "https://www.chess.com"]

[Event "Titled Tuesday Blitz May 23 Late 2023"]
[White "Chen, Ryo"]
[Black "Balla, Tamas-Kristof"]
[WhiteFideId "7003072"]
[BlackFideId "1208497"]
[WhiteElo "2169"]
[BlackElo "2334"]
[Result "0-1"]
[Round "08"]
[TimeControl "180+2"]
[Date "2023.05.23"]
[WhiteClock "0:00:08"]
[BlackClock "0:00:20"]

1. e4 {[%clk 0:03:00]}  d5 {[%clk 0:02:58]} 2. exd5 {[%clk 0:03:00]}  Qxd5 {[%clk 0:02:59]} 3. Nc3 {[%clk 0:02:59]}  Qa5 {[%clk 0:02:59]} 4. d4 {[%clk 0:02:59]}  Nf6 {[%clk 0:02:58]} 5. Nf3 {[%clk 0:02:58]}  c6 {[%clk 0:02:58]} 6. Bc4 {[%clk 0:02:56]}  Bf5 {[%clk 0:02:57]} 7. O-O {[%clk 0:02:54]}  Nbd7 {[%clk 0:02:56]} 8. Bd2 {[%clk 0:02:53]}  e6 {[%clk 0:02:53]} 9. Nd5 {[%clk 0:02:49]}  Qd8 {[%clk 0:02:53]} 10. Nxf6+ {[%clk 0:02:48]}  Nxf6 {[%clk 0:02:53]} 11. c3 {[%clk 0:02:44]}  Bd6 {[%clk 0:02:52]} 12. Re1 {[%clk 0:02:43]}  O-O {[%clk 0:02:51]} 13. Bg5 {[%clk 0:02:41]}  h6 {[%clk 0:02:50]} 14. Bh4 {[%clk 0:02:40]}  Be7 {[%clk 0:02:45]} 15. Bg3 {[%clk 0:02:32]}  c5 {[%clk 0:02:43]} 16. Qe2 {[%clk 0:02:17]}  Bg4 {[%clk 0:02:40]} 17. h3 {[%clk 0:02:11]}  Bxf3 {[%clk 0:02:39]} 18. Qxf3 {[%clk 0:02:11]}  cxd4 {[%clk 0:02:39]} 19. Rad1 {[%clk 0:02:11]}  Qb6 {[%clk 0:02:36]} 20. cxd4 {[%clk 0:02:07]}  Rad8 {[%clk 0:02:09]} 21. d5 {[%clk 0:01:56]}  exd5 {[%clk 0:02:00]} 22. Rxe7 {[%clk 0:01:53]}  dxc4 {[%clk 0:01:59]} 23. Rxd8 {[%clk 0:01:47]}  Rxd8 {[%clk 0:01:51]} 24. Rxb7 {[%clk 0:01:44]}  Qd4 {[%clk 0:01:46]} 25. Kh2 {[%clk 0:01:39]}  a5 {[%clk 0:01:41]} 26. Qf5 {[%clk 0:01:26]}  Qd5 {[%clk 0:01:34]} 27. Qxd5 {[%clk 0:01:23]}  Rxd5 {[%clk 0:01:33]} 28. Rc7 {[%clk 0:01:21]}  Rb5 {[%clk 0:01:32]} 29. Rxc4 {[%clk 0:01:18]}  Rxb2 {[%clk 0:01:32]} 30. Ra4 {[%clk 0:01:17]}  Rb5 {[%clk 0:01:24]} 31. Bc7 {[%clk 0:01:12]}  Nd5 {[%clk 0:01:24]} 32. Bxa5 {[%clk 0:01:10]}  Rb2 {[%clk 0:01:24]} 33. Kg3 {[%clk 0:01:08]}  f5 {[%clk 0:01:23]} 34. Rd4 {[%clk 0:01:04]}  Nf6 {[%clk 0:01:19]} 35. f3 {[%clk 0:00:51]}  Rxa2 {[%clk 0:01:15]} 36. Bd8 {[%clk 0:00:47]}  Nh5+ {[%clk 0:01:13]} 37. Kh4 {[%clk 0:00:42]}  g6 {[%clk 0:01:04]} 38. g4 {[%clk 0:00:39]}  fxg4 {[%clk 0:01:04]} 39. fxg4 {[%clk 0:00:38]}  Ng7 {[%clk 0:01:02]} 40. Bf6 {[%clk 0:00:31]}  g5+ {[%clk 0:00:57]} 41. Kg3 {[%clk 0:00:30]}  Ra3+ {[%clk 0:00:57]} 42. Kg2 {[%clk 0:00:30]}  Ne6 {[%clk 0:00:56]} 43. Rd7 {[%clk 0:00:29]}  Nf4+ {[%clk 0:00:55]} 44. Kf2 {[%clk 0:00:29]}  Rxh3 {[%clk 0:00:53]} 45. Rb7 {[%clk 0:00:27]}  Nd5 {[%clk 0:00:50]} 46. Bd4 {[%clk 0:00:26]}  Rd3 {[%clk 0:00:48]} 47. Bg7 {[%clk 0:00:22]}  Rh3 {[%clk 0:00:46]} 48. Be5 {[%clk 0:00:20]}  Ne3 {[%clk 0:00:38]} 49. Ke2 {[%clk 0:00:13]}  Nxg4 {[%clk 0:00:36]} 50. Bd4 {[%clk 0:00:13]}  Ra3 {[%clk 0:00:26]} 51. Rg7+ {[%clk 0:00:12]}  Kf8 {[%clk 0:00:20]} 52. Rb7 {[%clk 0:00:12]}  Ra4 {[%clk 0:00:20]} 53. Bc5+ {[%clk 0:00:10]}  Kg8 {[%clk 0:00:20]} 54. Bd6 {[%clk 0:00:10]}  Nf6 {[%clk 0:00:20]} 55. Be5 {[%clk 0:00:08]}  Re4+ {[%clk 0:00:20]} 0-1


[Site "https://www.chess.com"]

[Event "Titled Tuesday Blitz May 23 Late 2023"]
[White "Shapiro, Viktor"]
[Black "gueraumasague"]
[WhiteFideId "4175700"]
[WhiteElo "2152"]
[BlackElo "2548"]
[Result "0-1"]
[Round "08"]
[TimeControl "180+2"]
[Date "2023.05.23"]
[WhiteClock "0:00:06"]
[BlackClock "0:00:10"]

1. c4 {[%clk 0:03:00]}  g6 {[%clk 0:03:00]} 2. Nc3 {[%clk 0:03:00]}  Bg7 {[%clk 0:03:01]} 3. Nf3 {[%clk 0:02:57]}  d6 {[%clk 0:03:02]} 4. d4 {[%clk 0:02:58]}  Nc6 {[%clk 0:03:01]} 5. Bg5 {[%clk 0:02:58]}  Nf6 {[%clk 0:02:46]} 6. e4 {[%clk 0:02:58]}  Bg4 {[%clk 0:02:44]} 7. d5 {[%clk 0:02:57]}  Ne5 {[%clk 0:02:44]} 8. Be2 {[%clk 0:02:54]}  Nxf3+ {[%clk 0:02:43]} 9. gxf3 {[%clk 0:02:54]}  Bd7 {[%clk 0:02:42]} 10. h4 {[%clk 0:02:54]}  h5 {[%clk 0:02:38]} 11. Qc2 {[%clk 0:02:30]}  c6 {[%clk 0:02:37]} 12. Rg1 {[%clk 0:02:02]}  Rc8 {[%clk 0:02:36]} 13. f4 {[%clk 0:01:39]}  cxd5 {[%clk 0:02:19]} 14. cxd5 {[%clk 0:01:36]}  Nxe4 {[%clk 0:02:11]} 15. Qxe4 {[%clk 0:01:35]}  Rxc3 {[%clk 0:02:11]} 16. Rd1 {[%clk 0:00:49]}  Rc7 {[%clk 0:01:45]} 17. Bd3 {[%clk 0:00:39]}  Kf8 {[%clk 0:01:36]} 18. Qe2 {[%clk 0:00:34]}  Bc8 {[%clk 0:01:23]} 19. Rg3 {[%clk 0:00:30]}  Rc5 {[%clk 0:01:11]} 20. Re3 {[%clk 0:00:27]}  f6 {[%clk 0:01:03]} 21. Bxg6 {[%clk 0:00:27]}  Bg4 {[%clk 0:01:01]} 22. f3 {[%clk 0:00:23]}  Bd7 {[%clk 0:00:58]} 23. b4 {[%clk 0:00:19]}  Rc8 {[%clk 0:00:36]} 24. Kf2 {[%clk 0:00:19]}  fxg5 {[%clk 0:00:28]} 25. fxg5 {[%clk 0:00:19]}  Qb6 {[%clk 0:00:26]} 26. Kg3 {[%clk 0:00:17]}  Qxb4 {[%clk 0:00:12]} 27. Rxe7 {[%clk 0:00:15]}  Be5+ {[%clk 0:00:12]} 28. Rxe5 {[%clk 0:00:15]}  dxe5 {[%clk 0:00:13]} 29. Qxe5 {[%clk 0:00:15]}  Kg8 {[%clk 0:00:12]} 30. Qf6 {[%clk 0:00:12]}  Qf8 {[%clk 0:00:11]} 31. Qd4 {[%clk 0:00:11]}  Qd6+ {[%clk 0:00:11]} 32. f4 {[%clk 0:00:11]}  Qxg6 {[%clk 0:00:11]} 33. Re1 {[%clk 0:00:11]}  Re8 {[%clk 0:00:11]} 34. Re5 {[%clk 0:00:11]}  Rh7 {[%clk 0:00:10]} 35. d6 {[%clk 0:00:10]}  Rxe5 {[%clk 0:00:08]} 36. Qxe5 {[%clk 0:00:11]}  Qe6 {[%clk 0:00:09]} 37. Qd4 {[%clk 0:00:10]}  Rf7 {[%clk 0:00:08]} 38. a4 {[%clk 0:00:08]}  Qg4+ {[%clk 0:00:09]} 39. Kh2 {[%clk 0:00:08]}  Qxf4+ {[%clk 0:00:10]} 40. Qxf4 {[%clk 0:00:06]}  Rxf4 {[%clk 0:00:10]} 0-1


[Site "https://www.chess.com"]

[Event "Titled Tuesday Blitz May 23 Late 2023"]
[White "Ladan, Nicholas"]
[Black "Carrasco Miranda, Andres"]
[WhiteFideId "30918855"]
[BlackFideId "3405990"]
[WhiteElo "2167"]
[BlackElo "2183"]
[Result "1-0"]
[Round "08"]
[TimeControl "180+2"]
[Date "2023.05.23"]
[WhiteClock "0:00:13"]
[BlackClock "0:00:07"]

1. d4 {[%clk 0:03:00]}  Nf6 {[%clk 0:02:56]} 2. c3 {[%clk 0:03:00]}  g6 {[%clk 0:02:55]} 3. Bg5 {[%clk 0:02:58]}  Bg7 {[%clk 0:02:55]} 4. Nd2 {[%clk 0:02:58]}  h6 {[%clk 0:02:53]} 5. Bh4 {[%clk 0:02:57]}  c5 {[%clk 0:02:53]} 6. e3 {[%clk 0:02:57]}  cxd4 {[%clk 0:02:45]} 7. exd4 {[%clk 0:02:57]}  d6 {[%clk 0:02:45]} 8. Bd3 {[%clk 0:02:56]}  Nc6 {[%clk 0:02:43]} 9. Ne2 {[%clk 0:02:56]}  O-O {[%clk 0:02:42]} 10. O-O {[%clk 0:02:56]}  e5 {[%clk 0:02:38]} 11. Ne4 {[%clk 0:02:36]}  exd4 {[%clk 0:02:31]} 12. cxd4 {[%clk 0:02:32]}  d5 {[%clk 0:02:28]} 13. Nxf6+ {[%clk 0:02:19]}  Bxf6 {[%clk 0:02:29]} 14. Bxf6 {[%clk 0:02:19]}  Qxf6 {[%clk 0:02:29]} 15. Qd2 {[%clk 0:02:10]}  Kg7 {[%clk 0:02:19]} 16. Bb5 {[%clk 0:02:10]}  Ne7 {[%clk 0:02:02]} 17. Rac1 {[%clk 0:02:08]}  a6 {[%clk 0:01:47]} 18. Bd3 {[%clk 0:02:04]}  Nc6 {[%clk 0:01:47]} 19. Bb1 {[%clk 0:01:55]}  Bg4 {[%clk 0:01:38]} 20. Ng3 {[%clk 0:01:53]}  h5 {[%clk 0:01:30]} 21. h3 {[%clk 0:01:47]}  h4 {[%clk 0:01:28]} 22. Ne4 {[%clk 0:01:20]}  dxe4 {[%clk 0:01:19]} 23. hxg4 {[%clk 0:01:21]}  Rad8 {[%clk 0:01:07]} 24. Bxe4 {[%clk 0:01:02]}  Rxd4 {[%clk 0:01:06]} 25. Qe3 {[%clk 0:01:02]}  Re8 {[%clk 0:01:00]} 26. f3 {[%clk 0:01:02]}  Rb4 {[%clk 0:00:53]} 27. b3 {[%clk 0:00:49]}  Qd4 {[%clk 0:00:41]} 28. Qxd4+ {[%clk 0:00:47]}  Nxd4 {[%clk 0:00:42]} 29. Rc7 {[%clk 0:00:44]}  b6 {[%clk 0:00:26]} 30. Ra7 {[%clk 0:00:38]}  a5 {[%clk 0:00:24]} 31. Rd1 {[%clk 0:00:31]}  Ne2+ {[%clk 0:00:20]} 32. Kf2 {[%clk 0:00:30]}  Ng3 {[%clk 0:00:18]} 33. Rdd7 {[%clk 0:00:24]}  Nxe4+ {[%clk 0:00:17]} 34. fxe4 {[%clk 0:00:25]}  Rf8 {[%clk 0:00:15]} 35. Ke3 {[%clk 0:00:23]}  Kf6 {[%clk 0:00:12]} 36. Rd6+ {[%clk 0:00:19]}  Kg5 {[%clk 0:00:12]} 37. Kf3 {[%clk 0:00:15]}  Re8 {[%clk 0:00:12]} 38. Rd5+ {[%clk 0:00:15]}  Kh6 {[%clk 0:00:09]} 39. Rxf7 {[%clk 0:00:12]}  Rbxe4 {[%clk 0:00:09]} 40. g5+ {[%clk 0:00:12]}  Kh5 {[%clk 0:00:07]} 41. Rh7# {[%clk 0:00:13]} 1-0


[Site "https://www.chess.com"]

[Event "Titled Tuesday Blitz May 23 Late 2023"]
[White "StarkyNZ"]
[Black "Janaszak, Dawid"]
[BlackFideId "1119206"]
[WhiteElo "2369"]
[BlackElo "2220"]
[Result "0-1"]
[Round "08"]
[TimeControl "180+2"]
[Date "2023.05.23"]
[WhiteClock "0:01:35"]
[BlackClock "0:01:40"]

1. d4 {[%clk 0:03:00]}  d5 {[%clk 0:02:58]} 2. c4 {[%clk 0:03:01]}  e6 {[%clk 0:02:59]} 3. Nc3 {[%clk 0:03:01]}  c5 {[%clk 0:02:59]} 4. cxd5 {[%clk 0:03:01]}  cxd4 {[%clk 0:03:00]} 5. dxe6 {[%clk 0:02:45]}  Bxe6 {[%clk 0:02:50]} 6. Ne4 {[%clk 0:02:44]}  Nf6 {[%clk 0:02:39]} 7. Nxf6+ {[%clk 0:02:30]}  Qxf6 {[%clk 0:02:40]} 8. Nf3 {[%clk 0:02:30]}  Nc6 {[%clk 0:02:40]} 9. Qa4 {[%clk 0:02:23]}  Bc5 {[%clk 0:02:35]} 10. Qb5 {[%clk 0:02:18]}  Bb6 {[%clk 0:02:27]} 11. g3 {[%clk 0:02:07]}  O-O {[%clk 0:02:18]} 12. Bg2 {[%clk 0:02:08]}  d3 {[%clk 0:02:02]} 13. Qxd3 {[%clk 0:01:59]}  Nb4 {[%clk 0:01:48]} 14. Qb1 {[%clk 0:01:55]}  Bf5 {[%clk 0:01:39]} 15. e4 {[%clk 0:01:55]}  Bxe4 {[%clk 0:01:40]} 16. Qxe4 {[%clk 0:01:35]}  Rfe8 {[%clk 0:01:40]} 0-1


[Site "https://www.chess.com"]

[Event "Titled Tuesday Blitz May 23 Late 2023"]
[White "Bashkansky, Ethan"]
[Black "Ognean, Mihnea-Ionut"]
[WhiteFideId "2071533"]
[BlackFideId "1232347"]
[WhiteElo "2354"]
[BlackElo "2215"]
[Result "0-1"]
[Round "08"]
[TimeControl "180+2"]
[Date "2023.05.23"]
[WhiteClock "0:01:39"]
[BlackClock "0:02:08"]

1. d4 {[%clk 0:03:00]}  g6 {[%clk 0:02:56]} 2. e4 {[%clk 0:03:00]}  Bg7 {[%clk 0:02:56]} 3. Be3 {[%clk 0:03:00]}  Nf6 {[%clk 0:02:46]} 4. f3 {[%clk 0:03:00]}  d5 {[%clk 0:02:45]} 5. Nc3 {[%clk 0:02:56]}  dxe4 {[%clk 0:02:32]} 6. Nxe4 {[%clk 0:02:55]}  Nxe4 {[%clk 0:02:32]} 7. fxe4 {[%clk 0:02:55]}  e5 {[%clk 0:02:32]} 8. d5 {[%clk 0:02:44]}  Qh4+ {[%clk 0:02:26]} 9. g3 {[%clk 0:01:53]}  Qxe4 {[%clk 0:02:25]} 10. Qf3 {[%clk 0:01:53]}  Bf5 {[%clk 0:02:08]} 11. O-O-O {[%clk 0:01:39]}  Qxc2# {[%clk 0:02:08]} 0-1


[Site "https://www.chess.com"]

[Event "Titled Tuesday Blitz May 23 Late 2023"]
[White "Cruz Mendez, Jean Marco"]
[Black "Bach, Matthias"]
[WhiteFideId "3526402"]
[BlackFideId "4603168"]
[WhiteElo "2064"]
[BlackElo "2130"]
[Result "0-1"]
[Round "08"]
[TimeControl "180+2"]
[Date "2023.05.23"]
[WhiteClock "0:01:22"]
[BlackClock "0:01:22"]

1. e4 {[%clk 0:02:39]}  e5 {[%clk 0:02:58]} 2. Nf3 {[%clk 0:02:40]}  Nc6 {[%clk 0:02:58]} 3. Bb5 {[%clk 0:02:40]}  Bc5 {[%clk 0:02:58]} 4. O-O {[%clk 0:02:39]}  d6 {[%clk 0:02:57]} 5. c3 {[%clk 0:02:38]}  a6 {[%clk 0:02:57]} 6. Ba4 {[%clk 0:02:38]}  Ba7 {[%clk 0:02:57]} 7. h3 {[%clk 0:02:36]}  Ne7 {[%clk 0:02:55]} 8. d4 {[%clk 0:02:32]}  exd4 {[%clk 0:02:55]} 9. cxd4 {[%clk 0:02:31]}  O-O {[%clk 0:02:55]} 10. Nc3 {[%clk 0:02:31]}  d5 {[%clk 0:02:55]} 11. e5 {[%clk 0:02:29]}  Bf5 {[%clk 0:02:54]} 12. Be3 {[%clk 0:02:27]}  Be4 {[%clk 0:02:53]} 13. Bc2 {[%clk 0:02:24]}  Bxf3 {[%clk 0:02:50]} 14. Qxf3 {[%clk 0:02:15]}  Bxd4 {[%clk 0:02:48]} 15. Bxd4 {[%clk 0:02:10]}  Nxd4 {[%clk 0:02:48]} 16. Qd3 {[%clk 0:02:10]}  Nxc2 {[%clk 0:02:47]} 17. Qxc2 {[%clk 0:02:10]}  c6 {[%clk 0:02:41]} 18. Rad1 {[%clk 0:02:10]}  Qb6 {[%clk 0:02:33]} 19. Rfe1 {[%clk 0:02:09]}  Rfe8 {[%clk 0:02:32]} 20. Ne2 {[%clk 0:02:04]}  Ng6 {[%clk 0:02:28]} 21. Ng3 {[%clk 0:02:04]}  Rxe5 {[%clk 0:02:23]} 22. Rxe5 {[%clk 0:02:02]}  Nxe5 {[%clk 0:02:23]} 23. Qf5 {[%clk 0:02:03]}  Ng6 {[%clk 0:02:13]} 24. Re1 {[%clk 0:02:03]}  Qxb2 {[%clk 0:02:09]} 25. Nh5 {[%clk 0:01:57]}  Rf8 {[%clk 0:02:01]} 26. Rb1 {[%clk 0:01:51]}  Qe5 {[%clk 0:01:58]} 27. Qf3 {[%clk 0:01:49]}  b5 {[%clk 0:01:52]} 28. Rb3 {[%clk 0:01:43]}  c5 {[%clk 0:01:48]} 29. Re3 {[%clk 0:01:43]}  Qa1+ {[%clk 0:01:46]} 30. Kh2 {[%clk 0:01:43]}  d4 {[%clk 0:01:40]} 31. Re2 {[%clk 0:01:43]}  Qc3 {[%clk 0:01:37]} 32. Qc6 {[%clk 0:01:37]}  d3 {[%clk 0:01:30]} 33. Re8 {[%clk 0:01:30]}  d2 {[%clk 0:01:28]} 34. Qd7 {[%clk 0:01:28]}  Qd4 {[%clk 0:01:23]} 35. Rxf8+ {[%clk 0:01:22]}  Nxf8 {[%clk 0:01:22]} 0-1


[Site "https://www.chess.com"]

[Event "Titled Tuesday Blitz May 23 Late 2023"]
[White "Lalanne, Pablo"]
[Black "Dragomirescu, Robin-Alexandru"]
[WhiteFideId "112151"]
[BlackFideId "1213849"]
[WhiteElo "2120"]
[BlackElo "2356"]
[Result "0-1"]
[Round "08"]
[TimeControl "180+2"]
[Date "2023.05.23"]
[WhiteClock "0:00:02"]
[BlackClock "0:01:03"]

1. e4 {[%clk 0:03:00]}  g6 {[%clk 0:02:59]} 2. d4 {[%clk 0:02:59]}  Nf6 {[%clk 0:02:58]} 3. Nc3 {[%clk 0:02:59]}  d5 {[%clk 0:02:58]} 4. e5 {[%clk 0:02:57]}  Ne4 {[%clk 0:02:58]} 5. Bd3 {[%clk 0:02:55]}  Nxc3 {[%clk 0:02:58]} 6. bxc3 {[%clk 0:02:56]}  c5 {[%clk 0:02:58]} 7. Nf3 {[%clk 0:02:52]}  Bg4 {[%clk 0:02:55]} 8. h3 {[%clk 0:02:48]}  Bxf3 {[%clk 0:02:54]} 9. Qxf3 {[%clk 0:02:49]}  c4 {[%clk 0:02:54]} 10. Be2 {[%clk 0:02:48]}  e6 {[%clk 0:02:54]} 11. O-O {[%clk 0:02:43]}  h5 {[%clk 0:02:53]} 12. Rb1 {[%clk 0:02:34]}  Qc7 {[%clk 0:02:47]} 13. Qf6 {[%clk 0:02:24]}  Rg8 {[%clk 0:02:45]} 14. Bg5 {[%clk 0:02:18]}  Nc6 {[%clk 0:02:45]} 15. g4 {[%clk 0:02:06]}  hxg4 {[%clk 0:02:44]} 16. Bxg4 {[%clk 0:02:07]}  Be7 {[%clk 0:02:34]} 17. Qf4 {[%clk 0:02:06]}  Bxg5 {[%clk 0:02:29]} 18. Qxg5 {[%clk 0:02:07]}  b6 {[%clk 0:02:29]} 19. f4 {[%clk 0:01:45]}  Qe7 {[%clk 0:02:23]} 20. Kg2 {[%clk 0:01:36]}  Rh8 {[%clk 0:02:23]} 21. Kg3 {[%clk 0:01:32]}  Kd7 {[%clk 0:02:22]} 22. h4 {[%clk 0:01:25]}  Rab8 {[%clk 0:02:11]} 23. a4 {[%clk 0:01:12]}  a6 {[%clk 0:02:11]} 24. Rh1 {[%clk 0:01:07]}  b5 {[%clk 0:02:07]} 25. axb5 {[%clk 0:01:07]}  axb5 {[%clk 0:02:08]} 26. h5 {[%clk 0:01:07]}  gxh5 {[%clk 0:02:07]} 27. Rxh5 {[%clk 0:01:03]}  Rhg8 {[%clk 0:02:07]} 28. Qxe7+ {[%clk 0:01:02]}  Nxe7 {[%clk 0:02:08]} 29. Kf3 {[%clk 0:00:55]}  Rh8 {[%clk 0:01:45]} 30. Rbh1 {[%clk 0:00:31]}  Rxh5 {[%clk 0:01:43]} 31. Rxh5 {[%clk 0:00:32]}  Ra8 {[%clk 0:01:18]} 32. f5 {[%clk 0:00:27]}  Ra3 {[%clk 0:01:12]} 33. fxe6+ {[%clk 0:00:21]}  fxe6 {[%clk 0:01:13]} 34. Rh6 {[%clk 0:00:20]}  Rxc3+ {[%clk 0:01:13]} 35. Kf4 {[%clk 0:00:19]}  Nf5 {[%clk 0:01:09]} 36. Bxf5 {[%clk 0:00:17]}  exf5 {[%clk 0:01:10]} 37. Kxf5 {[%clk 0:00:17]}  Rxc2 {[%clk 0:01:10]} 38. Rh7+ {[%clk 0:00:17]}  Kc6 {[%clk 0:01:09]} 39. e6 {[%clk 0:00:15]}  Re2 {[%clk 0:01:05]} 40. Kf6 {[%clk 0:00:11]}  c3 {[%clk 0:01:03]} 41. Rh3 {[%clk 0:00:09]}  b4 {[%clk 0:01:03]} 42. e7 {[%clk 0:00:08]}  c2 {[%clk 0:01:03]} 43. Rh1 {[%clk 0:00:08]}  b3 {[%clk 0:01:03]} 44. Rc1 {[%clk 0:00:06]}  Kb5 {[%clk 0:01:02]} 45. Kf7 {[%clk 0:00:05]}  Kc4 {[%clk 0:01:02]} 46. e8=Q {[%clk 0:00:05]}  Rxe8 {[%clk 0:01:03]} 47. Kxe8 {[%clk 0:00:02]}  Kc3 {[%clk 0:01:03]} 0-1


[Site "https://www.chess.com"]

[Event "Titled Tuesday Blitz May 23 Late 2023"]
[White "Perez, Maximiliano"]
[Black "Denishev, Marat"]
[WhiteFideId "117234"]
[BlackFideId "24131563"]
[WhiteElo "2344"]
[BlackElo "2311"]
[Result "0-1"]
[Round "08"]
[TimeControl "180+2"]
[Date "2023.05.23"]
[WhiteClock "0:00:06"]
[BlackClock "0:00:23"]

1. e4 {[%clk 0:03:00]}  Nf6 {[%clk 0:02:53]} 2. e5 {[%clk 0:03:00]}  Nd5 {[%clk 0:02:50]} 3. d4 {[%clk 0:03:01]}  d6 {[%clk 0:02:50]} 4. c4 {[%clk 0:03:02]}  Nb6 {[%clk 0:02:50]} 5. exd6 {[%clk 0:03:03]}  exd6 {[%clk 0:02:50]} 6. Nc3 {[%clk 0:03:04]}  Be7 {[%clk 0:02:50]} 7. Nf3 {[%clk 0:03:04]}  O-O {[%clk 0:02:51]} 8. Be2 {[%clk 0:03:05]}  Bf5 {[%clk 0:02:51]} 9. O-O {[%clk 0:03:05]}  Nc6 {[%clk 0:02:51]} 10. Be3 {[%clk 0:03:03]}  Bf6 {[%clk 0:02:51]} 11. b3 {[%clk 0:03:03]}  d5 {[%clk 0:02:49]} 12. c5 {[%clk 0:03:03]}  Nc8 {[%clk 0:02:49]} 13. Qd2 {[%clk 0:03:02]}  N8e7 {[%clk 0:02:48]} 14. h3 {[%clk 0:03:02]}  Bg6 {[%clk 0:02:48]} 15. g4 {[%clk 0:03:01]}  Re8 {[%clk 0:02:43]} 16. Rad1 {[%clk 0:02:59]}  Nc8 {[%clk 0:02:38]} 17. Ne1 {[%clk 0:02:48]}  a5 {[%clk 0:02:05]} 18. Bf3 {[%clk 0:02:41]}  Be4 {[%clk 0:01:59]} 19. Bxe4 {[%clk 0:01:57]}  dxe4 {[%clk 0:02:00]} 20. d5 {[%clk 0:01:58]}  Bxc3 {[%clk 0:01:41]} 21. Qxc3 {[%clk 0:01:59]}  Ne5 {[%clk 0:01:41]} 22. f4 {[%clk 0:01:50]}  exf3 {[%clk 0:01:38]} 23. Nxf3 {[%clk 0:01:50]}  Nxf3+ {[%clk 0:01:38]} 24. Rxf3 {[%clk 0:01:51]}  Ne7 {[%clk 0:01:38]} 25. d6 {[%clk 0:01:51]}  cxd6 {[%clk 0:01:38]} 26. cxd6 {[%clk 0:01:52]}  Ng6 {[%clk 0:01:33]} 27. d7 {[%clk 0:01:20]}  Re7 {[%clk 0:01:24]} 28. Qd4 {[%clk 0:01:07]}  Ne5 {[%clk 0:01:22]} 29. Rff1 {[%clk 0:00:40]}  Rxd7 {[%clk 0:01:20]} 30. Qa1 {[%clk 0:00:40]}  Nf3+ {[%clk 0:00:46]} 31. Kf2 {[%clk 0:00:37]}  Nh4 {[%clk 0:00:40]} 32. Kg3 {[%clk 0:00:30]}  Ng6 {[%clk 0:00:36]} 33. Rxd7 {[%clk 0:00:26]}  Qxd7 {[%clk 0:00:37]} 34. Bd4 {[%clk 0:00:20]}  Re8 {[%clk 0:00:31]} 35. Bxg7 {[%clk 0:00:14]}  Re3+ {[%clk 0:00:30]} 36. Kg2 {[%clk 0:00:13]}  Qd5+ {[%clk 0:00:28]} 37. Kh2 {[%clk 0:00:06]}  Re2+ {[%clk 0:00:23]} 0-1


[Site "https://www.chess.com"]